Cogmind - Beta 14 @@@ ROGUE MODE // 2025.02.17 @ 03:18:02 Player: Zeta Lockhart Result: Destroyed by G-67 Veteran with Field Laser Performance ------------- Evolutions (6) 3000 Regions Visited (13) 2600 Robots Destroyed (201) 1005 Value Destroyed (9006) 9006 Prototype IDs (9) 180 Alien Tech Used (0) 0 Bonus (2120) 2120 TOTAL SCORE: 17911 Bonus ------- High Alert Combat Kills 1690 Follower Combat Kills 459 Friendly Fire -29 Cogmind --------- Core Integrity 0/1150 Matter 36/300 Energy 100/100 System Corruption 10% Temperature Cool (27) Movement Core (1350) Ox26 Location -4/Factory Parts ------- > --- POWER (2) -------- (None) > --- PROPULSION (3) --- (None) > --- UTILITY (7) ------ High-capacity Storage Unit High-capacity Storage Unit > --- WEAPON (7) ------- (None) > --- INVENTORY (20) --- Angular Momentum Engine Neutrino Core Light Antimatter Reactor Light Antimatter Reactor Advanced Heat Sink Advanced Heat Sink Improved Kinecellerator Microactuators Improved Medium Armor Plating Improved Medium Armor Plating Peak State ------------ > --- POWER ------------ Neutrino Core Light Antimatter Reactor > --- PROPULSION ------- Armored Medium Treads Centrium Heavy Treads > --- UTILITY ---------- Advanced Heat Sink Advanced Heat Sink Advanced Cooling System Advanced Cooling System Advanced Cooling System High-capacity Storage Unit Layered Medium Armor Plating > --- WEAPON ----------- Heavy Gatling Laser Phase Gun Phase Gun Phase Gun Advanced Plasma Cannon Coil Gun Hardcell Cannon > --- INVENTORY -------- Angular Momentum Engine Neutrino Core Neutrino Core Reinforced Fission Core Light Antimatter Reactor Light Antimatter Reactor Improved Treads Heavy Treads Advanced Medium Treads Improved Heat Sink Advanced Heat Sink High-capacity Storage Unit Hardened Heavy Armor Plating Long-range Proton Cannon Heavy Machine Gun Magnetic Acceleration Cannon Hardcell Cannon Phasing Sabre [Rating: 127] Favorites ----------- Power Neutrino Core Engine Heavy Ion Engine Power Core Neutrino Core Reactor Light Antimatter Reactor Propulsion Light Treads Treads Light Treads Utility Advanced Heat Sink Device Advanced Heat Sink Storage Medium Storage Unit Protection Centrium Medium Armor Plating Weapon Phase Gun Energy Gun Phase Gun Energy Cannon Advanced Plasma Cannon Ballistic Gun Flak Gun Ballistic Cannon Light Cannon Launcher Rocket Launcher Slashing Weapon Phasing Sabre Build | -11 -10 -10 -9 -9 -8 -7 -6 -6 -6 -6 -6 -5 -4 ------- Run | Yrd Mat Min Mat Min Mat Fac Fac Ext Cet Arc Hub Fac Fac Slots Evolved 12 | . . . 2 . 2 2 2 . . . . 2 2 Power 1 | . . . . . . 1 . . . . . . . Propulsion 1 | . . . . . . 1 . . . . . . . Utility 5 | . . . 1 . 1 . 1 . . . . 1 1 Weapon 5 | . . . 1 . 1 . 1 . . . . 1 1 Parts Attached 172 | 9 1 . 4 3 14 14 7 41 11 4 2 20 42 Power 32 | 3 . . 2 . 3 2 2 9 1 . 2 2 6 Engine 18 | 3 . . 2 . 3 1 . 6 1 . 2 . . Core 10 | . . . . . . 1 2 3 . . . 2 2 Reactor 4 | . . . . . . . . . . . . . 4 Propulsion 29 | 2 . . . 2 3 3 1 9 3 1 . 1 4 Treads 29 | 2 . . . 2 3 3 1 9 3 1 . 1 4 Leg . | . . . . . . . . . . . . . . Wheel . | . . . . . . . . . . . . . . Hover . | . . . . . . . . . . . . . . Flight . | . . . . . . . . . . . . . . Utility 59 | 2 1 . 1 1 4 3 2 17 3 1 . 12 12 Device 32 | 1 . . 1 . 1 2 . 9 1 1 . 8 8 Storage 12 | 1 1 . . . 1 . 1 3 . . . 4 1 Processor . | . . . . . . . . . . . . . . Hackware . | . . . . . . . . . . . . . . Protection 15 | . . . . 1 2 1 1 5 2 . . . 3 Artifact . | . . . . . . . . . . . . . . Weapon 52 | 2 . . 1 . 4 6 2 6 4 2 . 5 20 Energy Gun 21 | 1 . . . . 1 . . 3 2 2 . 5 7 Energy Cannon 6 | . . . . . 1 2 . 1 . . . . 2 Ballistic Gun 12 | 1 . . . . 1 2 1 2 1 . . . 4 Ballistic Cannon 11 | . . . 1 . 1 1 1 . 1 . . . 6 Launcher 1 | . . . . . . 1 . . . . . . . Special Weapon . | . . . . . . . . . . . . . . Impact Weapon . | . . . . . . . . . . . . . . Slashing Weapon 1 | . . . . . . . . . . . . . 1 Piercing Weapon . | . . . . . . . . . . . . . . Special Melee Weapon . | . . . . . . . . . . . . . . Unidentified Prototypes 7 | . . . . . 2 . 1 . 3 . . 1 . Corrupted Parts 1 | . . . . . . . . . 1 . . . . System Corruption 1 | . . . . . . . . . 1 . . . . Parts Lost 75 | . . . . . 1 9 . 17 10 1 . 2 35 Power 9 | . . . . . . 2 . 1 2 . . . 4 Propulsion 18 | . . . . . . 2 . 8 2 . . . 6 Utility 17 | . . . . . 1 1 . 3 3 . . . 9 Weapon 31 | . . . . . . 4 . 5 3 1 . 2 16 Highest Loss Streak 25 | . . . . . 1 8 . 7 8 1 . 1 25 To Critical Strikes 3 | . . . . . . . . . 2 . . . 1 Average Slot Usage (%) 93 | . 100 100 94 100 93 84 98 95 86 85 93 93 91 Engine 5 | . 14 14 11 11 9 6 6 5 9 6 13 7 . Core 3 | . . . . . . 1 6 7 . . . 3 6 Treads 15 | . 28 28 22 22 18 21 20 18 13 13 13 11 9 Device 17 | . 14 14 17 11 11 9 11 14 13 13 13 21 25 Storage 7 | . 14 14 11 11 11 7 6 6 6 6 6 5 5 Protection 7 | . . . . 10 7 6 13 9 8 13 13 6 4 Energy Gun 14 | . 14 14 11 11 9 6 . 8 13 17 20 27 20 Energy Cannon 3 | . . . . . 5 8 6 4 . . . . 5 Ballistic Gun 7 | . 14 14 11 11 12 3 13 9 12 8 6 3 4 Ballistic Cannon 6 | . . . 10 11 9 6 12 10 6 6 6 2 4 Peak Build Rating 127 | 7 7 7 11 11 28 32 43 58 76 76 82 112 127 Average Rating 66 | 5 7 7 9 10 21 29 41 49 66 73 81 98 120 On Entrance 38 | . 7 7 7 11 11 28 32 40 58 72 76 82 112 Naked Turns . | . . . . . . . . . . . . . . Heaviest Build 137 | 13 18 18 24 26 49 55 57 70 68 56 68 110 137 Greatest Support 110 | 40 40 40 40 40 43 63 63 69 100 103 103 110 110 Greatest Overweight (x) 3 | . . . . . 1 1 . 3 . . . . 1 Average Overweight (x) . | . . . . . . . . . . . . . 1 Largest Inventory Capacity 20 | 8 10 10 10 10 10 10 10 10 10 10 10 20 20 Average Capacity 13 | 6 9 10 10 10 10 10 10 10 10 10 10 13 20 Most Carried 20 | 4 8 8 10 10 10 10 10 10 10 10 10 20 20 Average Carried 12 | 1 6 8 9 9 9 9 7 9 7 9 9 12 19 Final Capacity 20 | 8 10 10 10 10 10 10 10 10 10 10 10 20 20 Final Carried 20 | 3 8 8 10 10 10 10 10 10 9 10 10 20 10 Class Distribution -------------------- 39% | Scavenger-Tank 38% | Scavenger-Executioner 7% | Mutant 5% | Tank 4% | Gunner Dominant Class ---------------- Mutant | -10/Materials Mutant | -10/Mines Gunner | -9/Materials Scavenger-Tank | -9/Mines Scavenger-Tank | -8/Materials Tank | -7/Factory Scavenger-Tank | -6/Factory Scavenger-Tank | -6/Extension Scavenger-Tank | -6/Cetus Scavenger-Tank | -6/Archives Scavenger-Tank | -6/Hub_04(d) Scavenger-Executioner | -5/Factory Scavenger-Executioner | -4/Factory Resources | -11 -10 -10 -9 -9 -8 -7 -6 -6 -6 -6 -6 -5 -4 ----------- Run | Yrd Mat Min Mat Min Mat Fac Fac Ext Cet Arc Hub Fac Fac Matter Collected 4447 | 238 . 60 155 142 400 352 148 982 291 256 46 402 975 Remotely . | . . . . . . . . . . . . . . Salvage Created 9649 | 69 . . 288 159 616 715 127 2575 275 235 46 840 3704 Parts 394 | 5 . . 24 14 26 45 7 77 12 7 2 29 146 Haulers Intercepted 2 | . . . . . 1 . . 1 . . . . . Recyclers Shooed 9 | . . . . . 1 3 1 1 . . . 1 2 Parts Field Recycled . | . . . . . . . . . . . . . . Retrieved Matter . | . . . . . . . . . . . . . . Parts Self-Destructed . | . . . . . . . . . . . . . . Prevented . | . . . . . . . . . . . . . . Kills | -11 -10 -10 -9 -9 -8 -7 -6 -6 -6 -6 -6 -5 -4 ------- Run | Yrd Mat Min Mat Min Mat Fac Fac Ext Cet Arc Hub Fac Fac Combat Hostiles Destroyed 146 | . . . 3 7 7 16 5 31 7 4 1 8 57 Melee 2 | . . . . . . 1 . . . . . . 1 Guns 74 | . . . 2 2 4 5 3 13 5 4 1 6 29 Cannons 65 | . . . 1 5 3 9 2 18 2 . . 1 24 AOE 1 | . . . . . . 1 . . . . . . . Classes Destroyed 16 | 2 . . 5 1 1 2 . 4 . . . . 1 Worker 4 | . . . 1 . . . . . . . . 1 2 Builder 10 | . . . 2 . . 2 . 2 . . . . 4 Tunneler 2 | 1 . . . . . . . . . . . . 1 Hauler 2 | . . . . . 1 . . 1 . . . . . Recycler 23 | 1 . . 1 . 4 3 . 9 . . . 3 2 Mechanic 1 | . . . . . . . . 1 . . . . . Watcher 13 | . . . 3 . 1 . . 3 1 . . 1 4 Swarmer 22 | . . . . 5 . . 4 8 . . . . 5 Saboteur 3 | . . . . . . . . . . . . . 3 Grunt 51 | . . . 2 . 6 9 . 10 3 . . 3 18 Brawler 6 | . . . . . . . . 3 . . . 1 2 Duelist 4 | . . . . . . . . 1 . . . . 3 Sentry 18 | . . . 1 2 1 2 1 3 . 4 1 1 2 Hunter 17 | . . . . . . 3 . 2 . . . 2 10 Programmer 17 | . . . . . . 2 . 2 . . . . 13 Behemoth 4 | . . . . . . . . 2 . . . 1 1 Cetus Guard 4 | . . . . . . . . . 4 . . . . Best Kill Streak 14 | 1 . . 5 3 6 11 5 12 4 2 1 4 14 Combat Bots Only 14 | . . . 2 3 4 5 5 8 4 2 1 3 14 Max Kills in Single Turn 3 | 1 . . 2 1 1 1 1 3 1 1 1 2 3 Gunslinging . | . . . . . . . . . . . . . . Exploded 1 | . . . . . . 1 . . . . . . . Melee 1 | . . . . . . 1 . . . . . . 1 Uniques/NPCs Destroyed . | . . . . . . . . . . . . . . Combat | -11 -10 -10 -9 -9 -8 -7 -6 -6 -6 -6 -6 -5 -4 -------- Run | Yrd Mat Min Mat Min Mat Fac Fac Ext Cet Arc Hub Fac Fac Hostile Shots Fired 1294 | . . . 18 37 46 147 42 269 72 28 18 47 570 Missed 351 | . . . 5 10 12 41 11 80 22 4 5 5 156 Damage Taken 16526 | . . . 190 302 540 1541 370 2748 1253 580 105 786 8111 Core 2195 | . . . 29 63 94 139 12 269 251 63 9 103 1163 Absorbed by Shields . | . . . . . . . . . . . . . . Reduced by Siege Mode 212 | . . . . . . . . . . 13 5 20 174 Redirected to Shielding 130 | . . . . . . . . . 111 14 2 3 . Regen/Repaired (Parts) 41 | . . . . . . 41 . . . . . . . Core Remaining (%) 79 | 100 . 100 . 77 82 80 . . . . 28 89 . Volleys Fired 364 | 5 . . 21 14 28 40 8 77 23 18 3 24 103 Largest 7 | 2 . . 3 3 4 4 5 5 5 5 5 6 7 Hottest 560 | 70 . . 105 105 179 218 195 338 310 299 311 491 560 Shots Fired 1608 | 9 . . 57 42 108 127 40 317 96 59 13 124 616 Gun 1080 | 9 . . 39 28 73 54 16 192 77 49 11 117 415 Cannon 520 | . . . 18 14 35 65 24 125 19 10 2 7 201 Launcher 8 | . . . . . . 8 . . . . . . . Special . | . . . . . . . . . . . . . . Kinetic 634 | 4 . . 37 28 71 45 32 135 50 30 4 19 179 Thermal 861 | 5 . . 20 14 28 45 8 157 46 29 9 105 395 Explosive 8 | . . . . . . 8 . . . . . . . Electromagnetic 105 | . . . . . 9 29 . 25 . . . . 42 Robot Hit Streak 26 | 3 . . 13 15 7 8 10 16 13 16 11 26 24 Robot Miss Streak 10 | 2 . . 3 5 5 3 8 7 9 3 2 3 10 Penetration Max 1 | . . . . . . . . 1 . 1 . . 1 Secondary Targets 2 | . . . . . . . . . . . . . 2 Max Gunslinging Chain 1 | . . . . . . . . . . . . . 1 Shots Hit Robots 970 | 5 . . 28 24 61 77 17 201 71 44 8 85 349 Core Hits 606 | 4 . 1 13 8 27 48 16 163 56 41 4 48 177 Critical Kills 3 | . . . . . . 1 1 . . . . . 1 Critical Parts Destroyed 2 | . . . . . 1 . . . . . . . 1 Critical Strikes 27 | . . . 1 1 2 4 1 3 1 1 1 1 11 Burn 9 | . . . 1 . . 1 . . 1 1 1 1 3 Destroy 5 | . . . . . 1 1 1 . . . . . 2 Blast 11 | . . . . 1 1 1 . 2 . . . . 6 Corrupt 2 | . . . . . . 1 . 1 . . . . . Melee Attacks . | . . . . . . . . . . . . . . Impact . | . . . . . . . . . . . . . . Slashing . | . . . . . . . . . . . . . . Piercing . | . . . . . . . . . . . . . . Sneak Attacks . | . . . . . . . . . . . . . . Combat Hostiles . | . . . . . . . . . . . . . . Follow-up Attacks . | . . . . . . . . . . . . . . Damage Inflicted 25912 | 64 6 3 484 370 1130 2309 371 5602 1646 1085 194 2039 10609 Guns 16022 | 63 . . 285 182 792 596 198 3266 1303 836 163 1899 6439 Cannons 8647 | . . . 199 175 338 974 173 2332 343 249 31 140 3693 Explosions 1196 | . . . . . . 728 . . . . . . 468 Melee . | . . . . . . . . . . . . . . Ramming 47 | 1 6 3 . 13 . 11 . 4 . . . . 9 Kinetic 9271 | 27 . . 334 268 713 527 302 2445 842 592 64 280 2877 Thermal 14069 | 36 . . 150 89 278 575 69 2666 804 493 130 1759 7020 Explosive 833 | . . . . . . 656 . . . . . . 177 Electromagnetic 1692 | . . . . . 139 540 . 487 . . . . 526 Impact . | . . . . . . . . . . . . . . Slashing . | . . . . . . . . . . . . . . Piercing . | . . . . . . . . . . . . . . Highest Corruption 10 | . . . . . . . . 4 5 5 8 2 10 Average Corruption 3 | . . . . . . . . 2 4 5 5 2 2 Corruption Purged . | . . . . . . . . . . . . . . Corruption Blocked . | . . . . . . . . . . . . . . Effects 67 | . . . . . . . . 16 11 9 1 6 24 Message Errors 18 | . . . . . . . . 4 2 3 . 3 6 Matter Fused 8 | . . . . . . . . 1 2 1 . . 4 Heat Flow Errors 8 | . . . . . . . . 1 2 1 . 1 3 Energy Discharges 9 | . . . . . . . . 4 1 . 1 . 3 Parts Fused 3 | . . . . . . . . . 1 . . 1 1 Data Loss (minor) 13 | . . . . . . . . 3 2 2 . 1 5 Data Loss (major) 2 | . . . . . . . . 1 1 . . . . Alerts 1 | . . . . . . . . . . 1 . . . Weapon Failures 5 | . . . . . . . . 2 . 1 . . 2 Overload Shots . | . . . . . . . . . . . . . . Overflow Damage 276 | . . . . 13 . 45 . 35 . . . . 183 Projectiles 174 | . . . . 13 . . . 35 . . . . 126 Explosions 102 | . . . . . . 45 . . . . . . 57 Melee . | . . . . . . . . . . . . . . Knockbacks 25 | 1 1 . 2 . 3 5 . 3 . . . 1 9 Impact 2 | 1 1 . . . . . . . . . . . . Kinetic 22 | . . . 2 . 3 4 . 3 . . . 1 9 Secondary 1 | . . . . . . 1 . . . . . . . Self-Inflicted Damage 151 | . . . . . . 136 . . . . . . 15 Shots 5 | . . . . . . 4 . . . . . . 1 Rammed 20 | 1 1 2 . 3 . 4 1 2 . . . . 6 Targets Rammed 21 | 1 1 2 . 3 . 5 1 2 . . . . 6 Kicked . | . . . . . . . . . . . . . . Crushed 1 | . . . . . . 1 . . . . . . . Highest Temperature 445 | 36 . . 362 48 355 199 192 430 445 224 360 276 348 Average Temperature 101 | 17 . . 130 19 128 104 125 93 118 45 170 99 105 Received Heat Transfer 3828 | . . . 63 54 369 699 30 869 135 90 36 138 1345 Effects 8 | . . . 3 . 1 . . 4 . . . . . Shutdowns 4 | . . . 1 . 1 . . 2 . . . . . Energy Bleed 2 | . . . . . . . . 2 . . . . . Interference 2 | . . . 2 . . . . . . . . . . Siege Activations 26 | . . . . . . . . . . 3 2 6 15 Total Turns 422 | . . . . . . . . . . 58 41 128 195 Longest Duration 78 | . . . . . . . . . . 38 28 78 28 Robots Corrupted . | . . . . . . . . . . . . . . Combat Hostiles . | . . . . . . . . . . . . . . Parts Fried 2 | . . . . . 1 . . 1 . . . . . Impact Corruptions . | . . . . . . . . . . . . . . Robots Melted 5 | . . . . . . . . 1 . . . 1 3 Combat Hostiles 4 | . . . . . . . . . . . . 1 3 Parts Melted 48 | . . . . . . 1 . 6 . . . 9 32 Heat Transferred 25062 | 111 . . 518 259 629 1197 111 5554 1703 851 296 3065 10768 Parts Sabotaged 2 | . . . . . . . . . . . . . 2 Parts Stolen . | . . . . . . . . . . . . . . Parts Stripped . | . . . . . . . . . . . . . . Power Chain Reactions 1 | . . . . . . 1 . . . . . . . Alert | -11 -10 -10 -9 -9 -8 -7 -6 -6 -6 -6 -6 -5 -4 ------- Run | Yrd Mat Min Mat Min Mat Fac Fac Ext Cet Arc Hub Fac Fac Peak Influence 1218 | 10 6 1 161 172 199 348 341 758 490 247 132 141 1218 Initial 424 | . 6 1 . 62 27 18 170 166 424 116 86 64 68 Average 292 | 5 6 1 79 91 67 133 230 393 434 214 108 79 592 Maximum Alert Level 4 | . . . . . . 1 1 3 2 1 . . 4 Low Security (%) 54 | 100 100 100 100 100 100 70 72 31 . 24 100 100 8 Level 1 14 | . . . . . . 29 27 22 9 75 . . 17 Level 2 22 | . . . . . . . . 34 90 . . . 50 Level 3 7 | . . . . . . . . 10 . . . . 20 Level 4 . | . . . . . . . . . . . . . 3 Level 5 . | . . . . . . . . . . . . . . High Security . | . . . . . . . . . . . . . . Max Security . | . . . . . . . . . . . . . . Squads Dispatched 31 | . . . . . 1 6 . 7 1 . . 1 15 Investigation 12 | . . . . . 1 3 . 5 1 . . 1 1 Extermination 6 | . . . . . . 1 . . . . . . 5 Reinforcement 5 | . . . . . . 2 . 1 . . . . 2 Assault 7 | . . . . . . . . 1 . . . . 6 Garrison 1 | . . . . . . . . . . . . . 1 Intercept . | . . . . . . . . . . . . . . Searches Triggered . | . . . . . . . . . . . . . . Construction Impeded 2 | . . . . . . 1 . 1 . . . . . Haulers Reinforced 2 | . . . . . . 1 . . . . . . 1 Active Scanning Responses . | . . . . . . . . . . . . . . Cargo Convoy Interrupts . | . . . . . . . . . . . . . . Stealth | -11 -10 -10 -9 -9 -8 -7 -6 -6 -6 -6 -6 -5 -4 --------- Run | Yrd Mat Min Mat Min Mat Fac Fac Ext Cet Arc Hub Fac Fac Distress Signals 10 | . . . 1 . 1 1 1 1 2 . . 1 2 Communications Jammed . | . . . . . . . . . . . . . . Distress Signals . | . . . . . . . . . . . . . . Times Spotted 215 | . 1 . 8 8 12 17 5 50 13 10 1 10 80 Peak Tracking Total 14 | . . . 2 3 3 6 4 7 5 2 1 3 14 Tactical Retreats 5 | . . . . . . 1 . 2 . . . . 2 Traps | -11 -10 -10 -9 -9 -8 -7 -6 -6 -6 -6 -6 -5 -4 ------- Run | Yrd Mat Min Mat Min Mat Fac Fac Ext Cet Arc Hub Fac Fac Traps Triggered 6 | . . . . . . 2 . . . . 2 2 . Indirectly . | . . . . . . . . . . . . . . Trap Hack Attempts . | . . . . . . . . . . . . . . Triggered . | . . . . . . . . . . . . . . Disarmed . | . . . . . . . . . . . . . . Reprogrammed . | . . . . . . . . . . . . . . Reused . | . . . . . . . . . . . . . . Traps Extracted . | . . . . . . . . . . . . . . Installed . | . . . . . . . . . . . . . . Triggered . | . . . . . . . . . . . . . . Machines | -11 -10 -10 -9 -9 -8 -7 -6 -6 -6 -6 -6 -5 -4 ---------- Run | Yrd Mat Min Mat Min Mat Fac Fac Ext Cet Arc Hub Fac Fac Machines Disabled 23 | . . . . . . 3 1 3 1 1 . 2 12 Max in Single Turn 6 | . . . . . . 1 1 1 1 1 . 1 6 Garrison Access 3 | . . . . . . . . . . . . 2 1 Machines Repaired . | . . . . . . . . . . . . . . Machines Dismantled . | . . . . . . . . . . . . . . Machines Sabotaged . | . . . . . . . . . . . . . . Overloaded Fab Kills . | . . . . . . . . . . . . . . Hacking | -11 -10 -10 -9 -9 -8 -7 -6 -6 -6 -6 -6 -5 -4 --------- Run | Yrd Mat Min Mat Min Mat Fac Fac Ext Cet Arc Hub Fac Fac Machines Accessed 31 | . 2 . 2 . 2 4 1 6 3 1 . 3 7 Terminals 24 | . 2 . 2 . 2 2 1 6 3 . . . 6 Fabricators 1 | . . . . . . . . . . . . 1 . Repair Stations 2 | . . . . . . 2 . . . . . . . Recycling Units . | . . . . . . . . . . . . . . Scanalyzers . | . . . . . . . . . . . . . . Garrison Access 3 | . . . . . . . . . . . . 2 1 Total Hacks 88 | . 5 . 5 . 6 9 1 15 5 25 . 3 14 Successful 50 | . 2 . 3 . 2 6 1 . 2 25 . 2 7 Failed 38 | . 3 . 2 . 4 3 . 15 3 . . 1 7 Catastrophic 12 | . . . . . 1 1 . 7 2 . . . 1 Database Lockouts . | . . . . . . . . . . . . . . Manual . | . . . . . . . . . . . . . . Terminals 53 | . 5 . 5 . 6 4 1 15 5 . . . 12 Fabricators 1 | . . . . . . . . . . . . 1 . Repair Stations 5 | . . . . . . 5 . . . . . . . Recycling Units . | . . . . . . . . . . . . . . Scanalyzers . | . . . . . . . . . . . . . . Garrison Access 4 | . . . . . . . . . . . . 2 2 Terminal Hacks 45 | . 2 . 3 . 2 4 1 . 2 25 . . 6 Record 26 | . . . . . . . . . 1 25 . . . Prototype ID Bank 1 | . . . . . . . . . . . . . 1 Open Door 1 | . . . . . . . . . 1 . . . . Open DSF 2 | . . . . . . . . . . . . . 2 Branch Access Points 3 | . . . 1 . . . 1 . . . . . 1 Emergency Access Points 1 | . . . . . 1 . . . . . . . . Terminal Index 1 | . . . . . . 1 . . . . . . . Unreport Threat 1 | . . . . . . 1 . . . . . . . Locate Traps 4 | . 2 . . . . 1 . . . . . . 1 Reinforcement Status 1 | . . . 1 . . . . . . . . . . Recall Reinforcements 1 | . . . . . . . . . . . . . 1 Zone Layout 3 | . . . 1 . 1 1 . . . . . . . Fabricator Hacks . | . . . . . . . . . . . . . . Repair Station Hacks 2 | . . . . . . 2 . . . . . . . Scan Component 1 | . . . . . . 1 . . . . . . . Repair 1 | . . . . . . 1 . . . . . . . Recycling Unit Hacks . | . . . . . . . . . . . . . . Scanalyzer . | . . . . . . . . . . . . . . Garrison Access Hacks 3 | . . . . . . . . . . . . 2 1 Seal Access 3 | . . . . . . . . . . . . 2 1 Unauthorized Hacks . | . . . . . . . . . . . . . . Terminals . | . . . . . . . . . . . . . . Fabricators . | . . . . . . . . . . . . . . Repair Stations . | . . . . . . . . . . . . . . Recycling Units . | . . . . . . . . . . . . . . Scanalyzers . | . . . . . . . . . . . . . . Garrison Access . | . . . . . . . . . . . . . . Data Cores Recovered . | . . . . . . . . . . . . . . Used . | . . . . . . . . . . . . . . Hacking Detections 20 | . 2 . 1 . 2 3 1 6 1 . . 1 3 Full Trace Events 10 | . . . . . 1 2 . 5 1 . . . 1 Feedback Events 1 | . . . . . . . . 1 . . . . . Corruption 1 | . . . . . . . . 1 . . . . . Feedback Blocked . | . . . . . . . . . . . . . . Robot Schematics Acquired . | . . . . . . . . . . . . . . Robots Built . | . . . . . . . . . . . . . . Authchips . | . . . . . . . . . . . . . . Time . | . . . . . . . . . . . . . . Total Robot Build Rating . | . . . . . . . . . . . . . . Part Schematics Acquired . | . . . . . . . . . . . . . . Parts Built . | . . . . . . . . . . . . . . Authchips . | . . . . . . . . . . . . . . Time . | . . . . . . . . . . . . . . Total Part Build Rating . | . . . . . . . . . . . . . . Parts Repaired 1 | . . . . . . 1 . . . . . . . Time 30 | . . . . . . 30 . . . . . . . Parts Recycled . | . . . . . . . . . . . . . . Recycled Matter . | . . . . . . . . . . . . . . Retrieved Matter . | . . . . . . . . . . . . . . Retrieved Components . | . . . . . . . . . . . . . . Parts Scanalyzed . | . . . . . . . . . . . . . . Part Schematics Acquired . | . . . . . . . . . . . . . . Parts Damaged . | . . . . . . . . . . . . . . Bothacking | -11 -10 -10 -9 -9 -8 -7 -6 -6 -6 -6 -6 -5 -4 ------------ Run | Yrd Mat Min Mat Min Mat Fac Fac Ext Cet Arc Hub Fac Fac Used RIF Installer . | . . . . . . . . . . . . . . Robots Hacked . | . . . . . . . . . . . . . . Non-combat . | . . . . . . . . . . . . . . Combat . | . . . . . . . . . . . . . . Robot Hacks Applied . | . . . . . . . . . . . . . . Relay Couplers Released . | . . . . . . . . . . . . . . Fabnet Peak Effective % . | . . . . . . . . . . . . . . Robots Rewired 8 | . . . . . . . . 8 . . . . . Allies Hacked . | . . . . . . . . . . . . . . Hacks Repelled . | . . . . . . . . . . . . . . Allies | -11 -10 -10 -9 -9 -8 -7 -6 -6 -6 -6 -6 -5 -4 -------- Run | Yrd Mat Min Mat Min Mat Fac Fac Ext Cet Arc Hub Fac Fac Total Allies 8 | . . . . . . . . 8 . . . . . Largest Group 7 | . . . . . . . . 7 . . . . . Highest-Rated Group 199 | . . . . . . . . 199 . . . . . Highest-Rated Ally 39 | . . . . . . . . 39 . . . . . Total Orders . | . . . . . . . . . . . . . . Ally Attacks 77 | . . . . . . . . 77 . . . . . Total Damage 1463 | . . . . . . . . 1463 . . . . . Kills 13 | . . . . . . . . 13 . . . . . Allies Corrupted . | . . . . . . . . . . . . . . Allies Melted 1 | . . . . . . . . 1 . . . . . Intel | -11 -10 -10 -9 -9 -8 -7 -6 -6 -6 -6 -6 -5 -4 ------- Run | Yrd Mat Min Mat Min Mat Fac Fac Ext Cet Arc Hub Fac Fac Robot Analysis Total . | . . . . . . . . . . . . . . Derelict Logs Recovered 2 | . . 1 . 1 . . . . . . . . . Drone Launches . | . . . . . . . . . . . . . . Drone Recoveries . | . . . . . . . . . . . . . . Exploration | -11 -10 -10 -9 -9 -8 -7 -6 -6 -6 -6 -6 -5 -4 ------------- Run | Yrd Mat Min Mat Min Mat Fac Fac Ext Cet Arc Hub Fac Fac Turns Passed 9356 | 110 196 285 313 710 654 761 368 1333 422 326 165 1133 2580 Spaces Moved 3874 | 53 115 177 147 406 272 348 181 437 198 133 64 540 803 Core 8 | 8 . . . . . . . . . . . . . Treads 3866 | 45 115 177 147 406 272 348 181 437 198 133 64 540 803 Legs . | . . . . . . . . . . . . . . Wheels . | . . . . . . . . . . . . . . Hover . | . . . . . . . . . . . . . . Flight . | . . . . . . . . . . . . . . Fastest Speed 50 | 50 160 160 160 160 160 160 160 160 160 160 160 160 232 Average Speed 181 | 143 160 160 160 160 193 161 160 176 160 160 160 160 243 Slowest Speed 400 | 160 160 160 160 160 240 240 160 400 160 160 160 160 245 Overloaded Moves . | . . . . . . . . . . . . . . Propulsion Burnouts . | . . . . . . . . . . . . . . Robots Hopped . | . . . . . . . . . . . . . . Cave-ins Triggered . | . . . . . . . . . . . . . . Exploration Rate (%) 33 | 5 28 53 16 71 24 9 5 54 76 83 7 17 24 Regions Visited 13 Branch Regions 6 Pre-discovered Areas 1 | . . 1 . . . . . . . . . . . Known Exits Taken 2 | . . . 1 . . . 1 . . . . . . Unknown Exits Taken 11 | 1 1 1 . 1 1 1 . 1 1 1 1 1 . Scrap Searched 2 | . . 1 . 1 . . . . . . . . . Spaces Dug 3 | . . . . . . . . . . . . . 3 Terrain Destroyed 237 | . . . . . . 70 7 21 2 1 1 3 132 Melee . | . . . . . . . . . . . . . . Projectile 113 | . . . . . . 2 7 21 2 1 1 3 76 AOE 124 | . . . . . . 68 . . . . . . 56 Terrain Rammed . | . . . . . . . . . . . . . . Walls Destroyed . | . . . . . . . . . . . . . . Machines Disabled . | . . . . . . . . . . . . . . Actions | -11 -10 -10 -9 -9 -8 -7 -6 -6 -6 -6 -6 -5 -4 --------- Run | Yrd Mat Min Mat Min Mat Fac Fac Ext Cet Arc Hub Fac Fac Total 5248 | 77 127 178 183 436 335 452 238 797 243 211 119 748 1104 Wait 492 | . 4 . 1 2 1 32 31 112 . 48 50 121 90 Move 3862 | 53 114 176 146 405 271 347 180 436 197 132 63 539 803 Hop . | . . . . . . . . . . . . . . Pick Up 139 | 10 6 . 6 3 5 10 7 23 9 4 1 25 30 Fast Attach 31 | . . . 1 1 9 6 . 5 . . . 3 6 Attach 78 | 7 . . 1 . . 7 5 14 11 1 1 6 25 Detach 2 | . . . . . 1 . . . 1 . . . . Swap 63 | 2 1 . 2 2 5 1 2 22 . 3 1 11 11 Drop 119 | . 1 . 5 6 15 4 4 28 2 5 . 19 30 Fire 364 | 5 . . 21 14 28 40 8 77 23 18 3 24 103 Melee . | . . . . . . . . . . . . . . Ram 2 | . . . . . . . . . . . . . 2 Kick . | . . . . . . . . . . . . . . Crush 18 | . 1 2 . 3 . 5 1 2 . . . . 4 Escape Stasis . | . . . . . . . . . . . . . . Rewire 78 | . . . . . . . . 78 . . . . . Trap . | . . . . . . . . . . . . . . Miscellaneous . | . . . . . . . . . . . . . . Route ------- -11/Scrapyard -10/Materials (discovered 2 exits: *Mat / [*Min]) -10/Mines -9/Materials (discovered 2 exits: *Min x2) -9/Mines -8/Materials -7/Factory -6/Factory (discovered 4 exits: Low x2 / *Ext x2) -6/Extension (discovered 2 exits: *Fac / *Cet) -6/Cetus -6/Archives (discovered 3 exits: *Fac / [*Hub x2]) -6/Hub_04(d) -5/Factory -4/Factory (discovered 2 exits: Upp x2) History --------- Turn | Location | Event 32 | -11/Scrapyard | Discovered new exit (range 15) 111 | -11/Scrapyard | Entered Materials 288 | -10/Materials | Discovered new exit (range 10) 291 | -10/Materials | Discovered new exit (range 16) 307 | -10/Materials | Entered Mines 314 | -10/Mines | Build established: Mutant 317 | -10/Mines | Learned location of Storage (-7) 527 | -10/Mines | Discovered new exit (range 15) 592 | -10/Mines | Entered Materials 592 | -9/Materials | Evolved 2 slots: Utility x1, Weapon x1 622 | -9/Materials | Identified exit to Mines 905 | -9/Materials | Entered Mines 906 | -9/Mines | YI-UF0 nonchalantly dropped a Grenade Launcher on the ground 908 | -9/Mines | Build established: Gunner 1259 | -9/Mines | Build established: Scavenger-Tank 1596 | -9/Mines | Learned Materials interactive machine intel 1596 | -9/Mines | Discovered new exit (range 12) 1615 | -9/Mines | Entered Materials 1615 | -8/Materials | Evolved 2 slots: Utility x1, Weapon x1 1616 | -8/Materials | Loaded intel: 18 interactive machine locations 2150 | -8/Materials | Discovered new exit (range 12) 2269 | -8/Materials | Entered Factory 2269 | -7/Factory | Evolved 2 slots: Power x1, Propulsion x1 2449 | -7/Factory | Build established: Tank 2729 | -7/Factory | Lost 8 parts (2p2n1u3w) 2917 | -7/Factory | Repaired Broken Flak Gun 3008 | -7/Factory | Discovered new exit (range 7) 3030 | -7/Factory | Entered another Factory area 3030 | -6/Factory | Evolved 2 slots: Utility x1, Weapon x1 3051 | -6/Factory | Identified exit to Lower Caves 3051 | -6/Factory | Identified exit to Extension 3055 | -6/Factory | Build established: Scavenger-Tank 3398 | -6/Factory | Entered Extension 4021 | -6/Extension | Spotted B-75 Beast 4058 | -6/Extension | Spotted B-75 Beast 4071 | -6/Extension | Destroyed B-75 Beast 4101 | -6/Extension | Lost 5 allies 4102 | -6/Extension | Destroyed B-75 Beast 4215 | -6/Extension | Lost 7 parts (1p1n1u4w) 4248 | -6/Extension | Disrupted transfer network 4370 | -6/Extension | Destroyed 8 combat bots 4370 | -6/Extension | Lost 4 parts (3n1w) 4448 | -6/Extension | First assault squad dispatched 4646 | -6/Extension | Discovered new exit (range 15) 4648 | -6/Extension | Discovered new exit (range 15) 4663 | -6/Extension | Disrupted transfer network 4731 | -6/Extension | Entered Cetus 4752 | -6/Cetus | Spotted Cetus Guard 4752 | -6/Cetus | Spotted Cetus Guard 4755 | -6/Cetus | Spotted Cetus Guard 4755 | -6/Cetus | Spotted Cetus Guard 4767 | -6/Cetus | Destroyed Cetus Guard 4785 | -6/Cetus | Destroyed Cetus Guard 4793 | -6/Cetus | Core integrity fell below 50% 4793 | -6/Cetus | Destroyed Cetus Guard 4801 | -6/Cetus | Destroyed Cetus Guard 4817 | -6/Cetus | Lost 8 parts (1p2n2u3w) 5089 | -6/Cetus | Discovered new exit (range 16) 5120 | -6/Cetus | Spotted Cetus Guard 5121 | -6/Cetus | Spotted Cetus Guard 5153 | -6/Cetus | Entered Archives 5308 | -6/Archives | Discovered new exit (range 15) 5336 | -6/Archives | Discovered new exit (range 16) 5361 | -6/Archives | Unable to access archive contents 5377 | -6/Archives | Unable to access archive contents 5403 | -6/Archives | Unable to access archive contents 5460 | -6/Archives | Discovered new exit (range 13) 5479 | -6/Archives | Entered Hub_04(d) 5620 | -6/Hub_04(d) | Discovered new exit (range 16) 5644 | -6/Hub_04(d) | Entered Factory 5644 | -5/Factory | Evolved 2 slots: Utility x1, Weapon x1 5938 | -5/Factory | Build established: Scavenger-Executioner 6210 | -5/Factory | Spotted B-75 Beast 6216 | -5/Factory | Destroyed B-75 Beast 6684 | -5/Factory | Discovered new exit (range 13) 6777 | -5/Factory | Entered another Factory area 6777 | -4/Factory | Evolved 2 slots: Utility x1, Weapon x1 7278 | -4/Factory | Spotted B-86 Titan 7289 | -4/Factory | Destroyed B-86 Titan 8276 | -4/Factory | Identified exit to Upper Caves 8527 | -4/Factory | First assault squad dispatched 9111 | -4/Factory | Destroyed 14 combat bots 9263 | -4/Factory | Garrison activated, responded to threat 9316 | -4/Factory | System corruption reached 10% 9320 | -4/Factory | Destroyed 8 combat bots 9325 | -4/Factory | Core integrity fell below 50% 9352 | -4/Factory | Core integrity fell below 20% 9357 | -4/Factory | Destroyed by G-67 Veteran with Field Laser Last Messages --------------- 09330_ Hrd. Heavy Armor Plating destroyed. 09330_ B-60 Warrior overheating. 09330_ B-60 Warrior critical meltdown. 09332_ Field Laser destroyed. 09333_ U-05 Engineer destroyed. 09339_ Acquired Imp. Medium Armor Plating. 09342_ Phasing Sabre destroyed. 09343_ Slammed into G-73 Enforcer. 09345_ Imp. Treads destroyed. 09345_ Slammed into G-73 Enforcer. 09347_ M-28 Smith repairs G-67 Veteran. 09348_ Slammed into G-73 Enforcer. 09348_ Critical hit (Burn: +37). 09351_ Slammed into G-73 Enforcer. 09353_ U-05 Engineer builds a Wall. 09354_ Adv. Medium Treads destroyed. 09354_ Critical hit (Burn: +50). 09354_ Slammed into G-73 Enforcer. 09357_ Critical hit (Burn: +37). [Achievement: Just Browsing] Map ----- +----------------------------------------------------+ | # #??????????????????????????????????? | | + """"" *|"" #??????????????????????????????????? | | "%"""""= ![G" #??????????????????????????????????? | | #* "" [ "" #??????????????????????????????????? | | "%! #??????????????????????????????????? | | ==| #??????????????????????????????????? | | [##############??????????????????????????????????? | | ##????#######????????????????????????????????????? | | ####### #????????????????????????????????????? | | [[ #????????????????????????????????????? | | ! #????????????????????????????????????? | | #????????????????????????????????????? | | "####"" #????????????????????????????????????? | | #??##"" "#########????????????????????????????? | | #???# " #????????????????????????????? | | #???### #????????????????????????????? | | ##?????# #????????????????????????????? | | ######## [ = ########?????????????????????? | | # = %% #?????????????????????? | | # % = = #?????????????????????? | | # """" %! #?????????????????????? | | !# """""" ! #?????????????????????? | | *[ # """""" #?????????????????????? | | !%%!# """""" #?##??????? ?????????? | | =![ # """""" / g ## #??? "%" ??????????? | | !==%+% """""" *g@ ; ##"%" " ??????????? | | = *# """""" /% *[=%##?????????????????? | | ##"#"### """""" [!*s##### #???????????????? | | # ## ## """"" %bgmg%![[%%#???????????????? | | ##?#### [!*=%% [!"##?????????????? | | ??????# % =% %%% % +??????????? | | ??????# #####"######??????????? | | ??????# #######+## #????? ??????????????? | | ??????######## ### #?????? #????????????? | | ?????????????# """ #?# #????????#????????????? | | ?????????????# """"" #?# #?????????????????????? | | ?????????????# """"" #?# #???????????+#????????? | | ?????????????# #?# #??????????? #????????? | | ?????????????# """ #?# #??????????? #????????? | | ?????????????# """"" #?# #??????????? #???????"" | | ?????????????# """"" #?# #????????### ###???? " | | ?????????????# #?# #????????# #### | | ?????????????# #?# #????????# T" ^ | | ?????????????# #?# #????????# "" ^ | | ?????????????########### #????????# ^ | | ?????????????# ## #????????# ##+##### | | ?????????????# ## #????????## ## | | ?????????????# ## ########### ## """ | | ?????????????# # ## """ | | ?????????????# += + """ | +----------------------------------------------------+ Best States ------------- Heat Dissipation 174 Coolant Potential 65 Energy Generation 39 Energy Capacity 530 Matter Stores 300 Matter Capacity 300 Sight Range 16 Terrain Scan Density 10 Armor Coverage 600 Core Shielding 20 Weapon Shielding 66 Evasion (%) 50 Recoil Reduction 3 Item Schematics ----------------- None Robot Schematics ------------------ None Fabricated ------------ Nothing Alien Tech Used ----------------- None Achievements -------------- A New Friend Executioner Just Browsing Librarian Oh No You Don't! Party Time Respectable Loadout The More The Merrier Challenges ------------ None Game ------ Seed MicroShieldFilter Manual? 0 Play Time 02:11:36 Cumulative 30.8 hours Start 2025.02.17 @ 01:03:53 End 2025.02.17 @ 03:18:02 Sessions 1 Manual Loads 0 Difficulty Rogue Special Mode None Game No. 29 Rogue 29 Adventurer 0 Explorer 0 Win Type - Total 0 Types 0/0/0/0/0/0/0/0/0 Lore% 3 Gallery% 25 Achievement% 21 Wizard Run 0 Options --------- Layout 0 ASCII 0 Keyboard 0 Movement Mouse Keybinds 0 Fullscreen 2 Font 12/Smallcaps Map View 41x27 Zoom Use 99% Tactical HUD 1 Map Filters NONE Filters NONE Steam 1 RUN: d3500cf7-4745-4acf-98d9-93c533cc47da